[Event "33rd Pula Open 2019"]
[Site "Pula"]
[Date "2019.06.26"]
[Round "6.9"]
[White "Jelen, Igor"]
[Black "Urh, Zala"]
[Result "1/2-1/2"]
[ECO "E53"]
[WhiteElo "2353"]
[BlackElo "2127"]
[Annotator "NA"]
[PlyCount "85"]
[EventDate "2019.06.22"]
[EventType "swiss"]
[EventCountry "CRO"]
[SourceTitle "playchess.com"]
[Source "ChessBase"]
[SourceQuality "1"]
[TimeControl "5400+30"]

1. d4 {[%emt 0:00:30]} Nf6 {[%emt 0:00:30]} 2. c4 {[%emt 0:00:00]} e6 {[%emt 0:00:00]} 3. Nc3 {[%emt 0:00:00]} Bb4 {[%emt 0:00:00]} 4. e3 {[%emt 0:00:30]} O-O {[%emt 0:00:30]} 5. Bd3 {[%emt 0:00:00]} d5 {[%emt 0:00:00]} 6. Nf3 {[%emt 0:00:00]} b6 {[%emt 0:01:00]} 7. O-O {[%emt 0:02:30]} Bb7 {[%emt 0:00:30]} 8. cxd5 {[%emt 0:00:30]} exd5 {[%emt 0:00:30]} 9. Ne5 {[%emt 0:00:30]} c5 {[%emt 0:06:30]} 10. f4 {[%emt 0:01:30]} Nc6 {[%emt 0:03:30]} 11. Ne2 {[%emt 0:00:30]} Rc8 {[%emt 0:02:30]} 12. a3 {[%emt 0:05:30]} Ba5 {[%emt 0:01:30]} 13. Ng3 {[%emt 0:07:30]} c4 {[%emt 0:09:30]} 14. Bc2 {[%emt 0:04:30]} b5 {[%emt 0:01:30]} 15. Nh5 {[%emt 0:06:30]} Rc7 {[%emt 0:04:30]} 16. Kh1 {[%emt 0:09:30]} Nxh5 {[%emt 0:09:30]} 17. Qxh5 {[%emt 0:00:30]} g6 {[%emt 0:00:30]} 18. Qh6 {[%emt 0:02:30]} f6 {[%emt 0:01:30]} 19. Nf3 {[%emt 0:03:30]} Qe7 {[%emt 0:06:30]} 20. g4 {[%emt 0:11:30]} Qg7 {[%emt 0:05:30]} 21. Qh3 {[%emt 0:03:30]} Re7 {[%emt 0:07:30]} 22. g5 {[%emt 0:10:30]} fxg5 {[%emt 0:01:30]} 23. Nxg5 {[%emt 0:00:30]} Bc8 {[%emt 0:06:30]} 24. Qg2 {[%emt 0:00:30]} Rd8 {[%emt 0:00:30]} 25. Bd2 {[%emt 0:04:30]} Bxd2 {[%emt 0:02:30]} 26. Qxd2 {[%emt 0:00:00]} Qf6 {[%emt 0:00:30]} 27. Nf3 {[%emt 0:08:42]} Bf5 {[%emt 0:00:30]} 28. Ne5 {[%emt 0:00:09]} Rc7 {[%emt 0:02:30]} 29. Rf2 {[%emt 0:08:49]} Rb8 {[%emt 0:01:30]} 30. Rg1 {[%emt 0:00:34]} b4 {[%emt 0:03:30]} 31. Nxc6 {[%emt 0:05:28]} Rxc6 {[%emt 0:00:00]} 32. axb4 {[%emt 0:00:13]} Rcb6 {[%emt 0:01:00]} 33. Rg5 {[%emt 0:01:22]} Bxc2 {[%emt 0:02:30]} 34. Qxc2 {[%emt 0:00:05]} Rxb4 {[%emt 0:00:00]} 35. Rxd5 {[%emt 0:02:00]} Qc6 {[%emt 0:03:05]} 36. e4 {[%emt 0:01:51]} Qa6 {[%emt 0:02:56]} 37. Qc1 {[%emt 0:00:59]} c3 {[%emt 0:00:54]} 38. Qxc3 {[%emt 0:00:13]} Rxb2 {[%emt 0:01:26]} 39. Rd8+ {[%emt 0:00:57]} Rxd8 {[%emt 0:01:35]} 40. Qxb2 {[%emt 0:00:06]} Qc4 {[%emt 0:00:08]} 41. Qa2 {[%emt 0:00:44]} Qxa2 {[%emt 0:00:18]} 42. Rxa2 {[%emt 0:00:12]} Rxd4 {[%emt 0:00:04]} 43. f5 {[%emt 0:01:01]} 1/2-1/2

[Event "33rd Pula Open 2019"]
[Site "Pula"]
[Date "2019.06.26"]
[Round "6.10"]
[White "Pecnik, Leo"]
[Black "Purgar, Ivona"]
[Result "1-0"]
[ECO "B30"]
[WhiteElo "2334"]
[BlackElo "2194"]
[Annotator "NA"]
[PlyCount "99"]
[EventDate "2019.06.22"]
[EventType "swiss"]
[EventCountry "CRO"]
[SourceTitle "playchess.com"]
[Source "ChessBase"]
[SourceQuality "1"]
[TimeControl "5400+30"]

1. e4 {[%emt 0:01:30]} c5 {[%emt 0:00:30]} 2. Nf3 {[%emt 0:00:00]} e6 {[%emt 0:00:00]} 3. d3 {[%emt 0:00:00]} Nc6 {[%emt 0:00:00]} 4. g3 {[%emt 0:00:00]} d6 {[%emt 0:05:30]} 5. Bg2 {[%emt 0:00:00]} Nf6 {[%emt 0:01:30]} 6. O-O {[%emt 0:00:30]} Be7 {[%emt 0:00:30]} 7. Re1 {[%emt 0:01:30]} O-O {[%emt 0:02:30]} 8. c3 {[%emt 0:04:30]} e5 {[%emt 0:24:30]} 9. h3 {[%emt 0:04:30]} h6 {[%emt 0:13:30]} 10. d4 {[%emt 0:02:30]} cxd4 {[%emt 0:01:30]} 11. cxd4 {[%emt 0:00:30]} Qb6 {[%emt 0:08:30]} 12. d5 {[%emt 0:01:30]} Na5 {[%emt 0:04:30]} 13. b3 {[%emt 0:05:30]} Bd7 {[%emt 0:01:30]} 14. Be3 {[%emt 0:01:30]} Qa6 {[%emt 0:01:30]} 15. a4 {[%emt 0:19:30]} b6 {[%emt 0:00:30]} 16. Nbd2 {[%emt 0:08:30]} Qc8 {[%emt 0:09:30]} 17. Rc1 {[%emt 0:01:30]} Qd8 {[%emt 0:00:30]} 18. Nh4 {[%emt 0:09:30]} Rc8 {[%emt 0:02:30]} 19. Qf3 {[%emt 0:02:30]} Re8 {[%emt 0:10:15]} 20. Bf1 {[%emt 0:01:30]} Rxc1 {[%emt 0:02:27]} 21. Rxc1 {[%emt 0:00:30]} Nb7 {[%emt 0:00:31]} 22. b4 {[%emt 0:06:30]} Qb8 {[%emt 0:01:12]} 23. Nf5 {[%emt 0:05:30]} Bxf5 {[%emt 0:02:25]} 24. Qxf5 {[%emt 0:01:30]} g6 {[%emt 0:01:18]} 25. Qf3 {[%emt 0:00:00]} Kg7 {[%emt 0:01:04]} 26. Ba6 {[%emt 0:06:29]} Rc8 {[%emt 0:00:46]} 27. Nc4 {[%emt 0:03:33]} Rc7 {[%emt 0:00:41]} 28. Na3 {[%emt 0:00:40]} Rxc1+ {[%emt 0:01:23]} 29. Bxc1 {[%emt 0:00:02]} Qc7 {[%emt 0:00:16]} 30. Qe3 {[%emt 0:00:10]} Nd8 {[%emt 0:02:14]} 31. Bd2 {[%emt 0:03:26]} h5 {[%emt 0:00:21]} 32. Kg2 {[%emt 0:00:29]} Nh7 {[%emt 0:01:24]} 33. Qc3 {[%emt 0:00:49]} Qd7 {[%emt 0:00:31]} 34. Nb5 {[%emt 0:02:34]} Bg5 {[%emt 0:00:35]} 35. f4 {[%emt 0:01:01]} Bf6 {[%emt 0:00:23]} 36. Qc7 {[%emt 0:00:18]} Qxc7 {[%emt 0:00:32]} 37. Nxc7 {[%emt 0:00:05]} exf4 {[%emt 0:00:26]} 38. gxf4 {[%emt 0:00:12]} g5 {[%emt 0:00:23]} 39. Ne8+ {[%emt 0:00:43]} Kf8 {[%emt 0:00:36]} 40. Nxd6 {[%emt 0:01:03]} gxf4 {[%emt 0:00:38]} 41. Bxf4 {[%emt 0:01:24]} Bc3 {[%emt 0:00:18]} 42. Nc8 {[%emt 0:01:47]} Bxb4 {[%emt 0:00:29]} 43. Bh6+ {[%emt 0:00:14]} Kg8 {[%emt 0:00:17]} 44. Nxa7 {[%emt 0:00:45]} f6 {[%emt 0:00:56]} 45. Nc6 {[%emt 0:01:42]} Nxc6 {[%emt 0:00:35]} 46. dxc6 {[%emt 0:00:05]} Bd6 {[%emt 0:00:00]} 47. Bc4+ {[%emt 0:00:14]} Kh8 {[%emt 0:00:05]} 48. h4 {[%emt 0:00:10]} Ng5 {[%emt 0:01:05]} 49. hxg5 {[%emt 0:00:20]} Kh7 {[%emt 0:00:03]} 50. Bf8 {[%emt 0:00:10]} 1-0

[Event "33rd Pula Open 2019"]
[Site "Pula"]
[Date "2019.06.26"]
[Round "6.11"]
[White "Bakker, Guido"]
[Black "Maier, Christian"]
[Result "0-1"]
[ECO "A53"]
[WhiteElo "2208"]
[BlackElo "2299"]
[Annotator "NA"]
[PlyCount "68"]
[EventDate "2019.06.22"]
[EventType "swiss"]
[EventCountry "CRO"]
[SourceTitle "playchess.com"]
[Source "ChessBase"]
[SourceQuality "1"]
[TimeControl "5400+30"]

1. d4 {[%emt 0:00:30]} Nf6 {[%emt 0:00:30]} 2. c4 {[%emt 0:00:00]} d6 {[%emt 0:00:30]} 3. Nc3 {[%emt 0:00:00]} e5 {[%emt 0:01:30]} 4. e4 {[%emt 0:01:30]} exd4 {[%emt 0:00:30]} 5. Qxd4 {[%emt 0:00:00]} Nc6 {[%emt 0:00:30]} 6. Qd2 {[%emt 0:00:00]} g6 {[%emt 0:05:30]} 7. b3 {[%emt 0:03:30]} Bg7 {[%emt 0:00:00]} 8. Bb2 {[%emt 0:00:30]} O-O {[%emt 0:00:00]} 9. Bd3 {[%emt 0:00:30]} Re8 {[%emt 0:00:30]} 10. f3 {[%emt 0:26:30]} a5 {[%emt 0:13:30]} 11. Nge2 {[%emt 0:03:30]} Ne5 {[%emt 0:07:30]} 12. Bc2 {[%emt 0:07:30]} a4 {[%emt 0:01:30]} 13. O-O {[%emt 0:02:30]} a3 {[%emt 0:03:30]} 14. Bc1 {[%emt 0:00:30]} c6 {[%emt 0:00:30]} 15. Rb1 {[%emt 0:03:30]} d5 {[%emt 0:14:30]} 16. cxd5 {[%emt 0:03:30]} cxd5 {[%emt 0:00:30]} 17. exd5 {[%emt 0:12:30]} Bd7 {[%emt 0:00:30]} 18. Kh1 {[%emt 0:01:30]} b5 {[%emt 0:01:30]} 19. Rd1 {[%emt 0:03:30]} b4 {[%emt 0:06:30]} 20. Ne4 {[%emt 0:00:30]} Nxe4 {[%emt 0:00:00]} 21. Bxe4 {[%emt 0:00:30]} Rc8 {[%emt 0:08:00]} 22. d6 {[%emt 0:07:30]} Qb6 {[%emt 0:05:30]} 23. Nf4 {[%emt 0:02:32]} f5 {[%emt 0:01:30]} 24. Bd5+ {[%emt 0:10:02]} Kh8 {[%emt 0:00:30]} 25. Qe1 {[%emt 0:01:10]} g5 {[%emt 0:11:27]} 26. Be3 {[%emt 0:00:20]} Qa6 {[%emt 0:00:16]} 27. Nh5 {[%emt 0:00:48]} Nd3 {[%emt 0:03:28]} 28. Nxg7 {[%emt 0:03:36]} Nxe1 {[%emt 0:01:14]} 29. Bc4 {[%emt 0:00:18]} Rxc4 {[%emt 0:04:54]} 30. Nxe8 {[%emt 0:00:02]} Nxg2 {[%emt 0:01:45]} 31. Nc7 {[%emt 0:01:23]} Qc6 {[%emt 0:01:11]} 32. Kxg2 {[%emt 0:00:09]} Rc2+ {[%emt 0:00:10]} 33. Bf2 {[%emt 0:00:25]} g4 {[%emt 0:00:09]} 34. Nd5 {[%emt 0:01:18]} Qc5 {[%emt 0:01:10]} 0-1

[Event "33rd Pula Open 2019"]
[Site "Pula"]
[Date "2019.06.26"]
[Round "6.12"]
[White "Jakrlin, Mihael"]
[Black "Kyc, Jerzy"]
[Result "1/2-1/2"]
[ECO "D46"]
[WhiteElo "1925"]
[BlackElo "2279"]
[Annotator "NA"]
[PlyCount "72"]
[EventDate "2019.06.22"]
[EventType "swiss"]
[EventCountry "CRO"]
[SourceTitle "playchess.com"]
[Source "ChessBase"]
[SourceQuality "1"]
[TimeControl "5400+30"]

1. d4 {[%emt 0:00:30]} d5 {[%emt 0:00:30]} 2. c4 {[%emt 0:00:30]} c6 {[%emt 0:00:00]} 3. Nf3 {[%emt 0:00:00]} Nf6 {[%emt 0:00:00]} 4. e3 {[%emt 0:00:00]} e6 {[%emt 0:00:30]} 5. Bd3 {[%emt 0:00:00]} Bd6 {[%emt 0:00:30]} 6. Nc3 {[%emt 0:01:00]} O-O {[%emt 0:00:00]} 7. O-O {[%emt 0:01:30]} Nbd7 {[%emt 0:00:00]} 8. b3 {[%emt 0:00:30]} Qe7 {[%emt 0:01:30]} 9. e4 {[%emt 0:06:30]} dxe4 {[%emt 0:00:30]} 10. Nxe4 {[%emt 0:00:30]} Nxe4 {[%emt 0:00:30]} 11. Bxe4 {[%emt 0:00:30]} Nf6 {[%emt 0:00:30]} 12. Bc2 {[%emt 0:00:00]} c5 {[%emt 0:00:00]} 13. Bb2 {[%emt 0:01:00]} cxd4 {[%emt 0:02:00]} 14. Qxd4 {[%emt 0:04:30]} Ba3 {[%emt 0:05:30]} 15. Bc3 {[%emt 0:03:30]} Bb4 {[%emt 0:00:30]} 16. Bb2 {[%emt 0:00:30]} Ba3 {[%emt 0:00:30]} 17. Bc3 {[%emt 0:00:00]} Rd8 {[%emt 0:04:30]} 18. Qh4 {[%emt 0:00:00]} h6 {[%emt 0:00:30]} 19. Rad1 {[%emt 0:01:30]} Bd7 {[%emt 0:02:30]} 20. Ne5 {[%emt 0:00:30]} Be8 {[%emt 0:01:30]} 21. Ng4 {[%emt 0:03:30]} Nxg4 {[%emt 0:02:30]} 22. Qxg4 {[%emt 0:04:30]} Qg5 {[%emt 0:01:30]} 23. Qxg5 {[%emt 0:00:30]} hxg5 {[%emt 0:00:00]} 24. Be4 {[%emt 0:00:30]} Bc6 {[%emt 0:00:00]} 25. Bxc6 {[%emt 0:00:30]} bxc6 {[%emt 0:00:00]} 26. Ba5 {[%emt 0:00:30]} Rxd1 {[%emt 0:03:00]} 27. Rxd1 {[%emt 0:00:00]} Bc5 {[%emt 0:02:30]} 28. Rd7 {[%emt 0:04:00]} Bb6 {[%emt 0:00:30]} 29. Bd2 {[%emt 0:00:30]} Rd8 {[%emt 0:04:30]} 30. Rxd8+ {[%emt 0:00:30]} Bxd8 {[%emt 0:00:30]} 31. Be3 {[%emt 0:00:30]} a6 {[%emt 0:00:00]} 32. f3 {[%emt 0:00:30]} f5 {[%emt 0:01:00]} 33. Kf2 {[%emt 0:00:30]} Kf7 {[%emt 0:00:00]} 34. h3 {[%emt 0:00:30]} e5 {[%emt 0:00:00]} 35. g4 {[%emt 0:00:00]} g6 {[%emt 0:00:30]} 36. Ke2 {[%emt 0:00:00]} Ke6 {[%emt 0:00:30]} 1/2-1/2

[Event "33rd Pula Open 2019"]
[Site "Pula"]
[Date "2019.06.26"]
[Round "6.13"]
[White "Burg, Brent"]
[Black "Biti, Ozren"]
[Result "0-1"]
[ECO "C41"]
[WhiteElo "2152"]
[BlackElo "2374"]
[Annotator "NA"]
[PlyCount "48"]
[EventDate "2019.06.22"]
[EventType "swiss"]
[EventCountry "CRO"]
[SourceTitle "playchess.com"]
[Source "ChessBase"]
[SourceQuality "1"]
[TimeControl "5400+30"]

1. d4 {[%emt 0:00:30]} d6 {[%emt 0:00:30]} 2. e4 {[%emt 0:00:30]} Nf6 {[%emt 0:00:00]} 3. Nc3 {[%emt 0:00:00]} e5 {[%emt 0:00:00]} 4. Nf3 {[%emt 0:01:00]} Nbd7 {[%emt 0:00:30]} 5. Bc4 {[%emt 0:00:30]} Be7 {[%emt 0:00:30]} 6. O-O {[%emt 0:01:30]} O-O {[%emt 0:00:30]} 7. Re1 {[%emt 0:01:30]} c6 {[%emt 0:00:30]} 8. a4 {[%emt 0:00:30]} a5 {[%emt 0:01:30]} 9. h3 {[%emt 0:01:30]} exd4 {[%emt 0:01:30]} 10. Nxd4 {[%emt 0:01:30]} Nc5 {[%emt 0:01:30]} 11. Ba2 {[%emt 0:03:30]} Be6 {[%emt 0:15:30]} 12. Nxe6 {[%emt 0:03:30]} fxe6 {[%emt 0:00:30]} 13. e5 {[%emt 0:29:30]} dxe5 {[%emt 0:09:30]} 14. Qxd8 {[%emt 0:01:30]} Raxd8 {[%emt 0:00:30]} 15. Rxe5 {[%emt 0:00:30]} Nd5 {[%emt 0:06:30]} 16. Bxd5 {[%emt 0:27:30]} cxd5 {[%emt 0:00:30]} 17. Bg5 {[%emt 0:00:00]} Bxg5 {[%emt 0:19:30]} 18. Rxg5 {[%emt 0:00:00]} Rf4 {[%emt 0:02:30]} 19. Re1 {[%emt 0:03:30]} Rc4 {[%emt 0:02:30]} 20. Rg4 {[%emt 0:09:50]} d4 {[%emt 0:12:30]} 21. Rd1 {[%emt 0:07:04]} e5 {[%emt 0:03:45]} 22. f4 {[%emt 0:01:06]} Ne6 {[%emt 0:09:23]} 23. Ne2 {[%emt 0:03:32]} Rxc2 {[%emt 0:01:11]} 24. Kf1 {[%emt 0:00:02]} d3 {[%emt 0:01:31]} 0-1

[Event "33rd Pula Open 2019"]
[Site "Pula"]
[Date "2019.06.26"]
[Round "6.14"]
[White "Filipovic, Branko"]
[Black "Sestic, Nermin"]
[Result "1-0"]
[ECO "C00"]
[WhiteElo "2371"]
[BlackElo "2149"]
[Annotator "NA"]
[PlyCount "90"]
[EventDate "2019.06.22"]
[EventType "swiss"]
[EventCountry "CRO"]
[SourceTitle "playchess.com"]
[Source "ChessBase"]
[SourceQuality "1"]
[TimeControl "5400+30"]

1. e4 {[%emt 0:00:30]} e6 {[%emt 0:02:30]} 2. f4 {[%emt 0:00:00]} d5 {[%emt 0:00:30]} 3. e5 {[%emt 0:00:00]} c5 {[%emt 0:00:30]} 4. Nf3 {[%emt 0:00:30]} Nc6 {[%emt 0:01:30]} 5. c3 {[%emt 0:00:00]} Qb6 {[%emt 0:02:30]} 6. Na3 {[%emt 0:03:00]} a6 {[%emt 0:03:30]} 7. Nc2 {[%emt 0:00:30]} Nge7 {[%emt 0:02:30]} 8. d3 {[%emt 0:03:30]} h5 {[%emt 0:03:30]} 9. g3 {[%emt 0:02:30]} Nf5 {[%emt 0:03:30]} 10. Bh3 {[%emt 0:02:30]} g6 {[%emt 0:07:30]} 11. Qe2 {[%emt 0:02:30]} Be7 {[%emt 0:07:30]} 12. O-O {[%emt 0:00:30]} Bd7 {[%emt 0:02:30]} 13. Ng5 {[%emt 0:05:30]} Qc7 {[%emt 0:04:30]} 14. Re1 {[%emt 0:00:30]} b5 {[%emt 0:08:30]} 15. Qf2 {[%emt 0:05:30]} c4 {[%emt 0:04:30]} 16. dxc4 {[%emt 0:04:30]} bxc4 {[%emt 0:05:30]} 17. Nf3 {[%emt 0:00:00]} Rb8 {[%emt 0:01:30]} 18. Bxf5 {[%emt 0:03:00]} gxf5 {[%emt 0:00:30]} 19. h4 {[%emt 0:00:30]} Qa5 {[%emt 0:02:30]} 20. Rd1 {[%emt 0:03:30]} Bc5 {[%emt 0:01:30]} 21. Be3 {[%emt 0:01:30]} Bxe3 {[%emt 0:03:30]} 22. Nxe3 {[%emt 0:00:30]} Ne7 {[%emt 0:00:30]} 23. Rd2 {[%emt 0:05:30]} Nc8 {[%emt 0:03:30]} 24. Nd4 {[%emt 0:16:30]} Nb6 {[%emt 0:01:30]} 25. Nd1 {[%emt 0:02:30]} Na4 {[%emt 0:01:30]} 26. b4 {[%emt 0:00:30]} Qb6 {[%emt 0:05:30]} 27. Rc1 {[%emt 0:00:30]} Rg8 {[%emt 0:00:45]} 28. Ne3 {[%emt 0:01:30]} Rg6 {[%emt 0:02:01]} 29. Kh2 {[%emt 0:02:30]} Ke7 {[%emt 0:00:52]} 30. Ndxf5+ {[%emt 0:00:30]} Kf8 {[%emt 0:02:23]} 31. Nd4 {[%emt 0:02:30]} Qc7 {[%emt 0:02:27]} 32. Qf3 {[%emt 0:04:30]} a5 {[%emt 0:02:11]} 33. a3 {[%emt 0:00:00]} Nb6 {[%emt 0:00:39]} 34. Qxh5 {[%emt 0:03:00]} Kg7 {[%emt 0:00:17]} 35. Qf3 {[%emt 0:00:30]} Rh8 {[%emt 0:01:32]} 36. Rg2 {[%emt 0:01:30]} Kf8 {[%emt 0:01:56]} 37. Rf1 {[%emt 0:01:30]} Rg7 {[%emt 0:03:27]} 38. Ng4 {[%emt 0:00:30]} Bc8 {[%emt 0:00:56]} 39. Nf6 {[%emt 0:01:30]} Nd7 {[%emt 0:00:30]} 40. Nxd7+ {[%emt 0:00:30]} Bxd7 {[%emt 0:00:12]} 41. Rb1 {[%emt 0:02:30]} axb4 {[%emt 0:02:06]} 42. axb4 {[%emt 0:00:30]} Rgh7 {[%emt 0:00:32]} 43. Qf2 {[%emt 0:00:30]} Ke7 {[%emt 0:01:49]} 44. Ra1 {[%emt 0:00:30]} Rb8 {[%emt 0:00:38]} 45. Nf3 {[%emt 0:01:30]} Qd8 {[%emt 0:02:38]} 1-0

[Event "33rd Pula Open 2019"]
[Site "Pula"]
[Date "2019.06.26"]
[Round "6.15"]
[White "Trkulja, Goran"]
[Black "Van der Zon, Stef"]
[Result "1/2-1/2"]
[ECO "E60"]
[WhiteElo "2299"]
[BlackElo "2148"]
[Annotator "NA"]
[PlyCount "106"]
[EventDate "2019.06.22"]
[EventType "swiss"]
[EventCountry "CRO"]
[SourceTitle "playchess.com"]
[Source "ChessBase"]
[SourceQuality "1"]
[TimeControl "5400+30"]

1. Nf3 {[%emt 0:07:30]} Nf6 {[%emt 0:00:30]} 2. c4 {[%emt 0:00:00]} g6 {[%emt 0:00:00]} 3. b3 {[%emt 0:01:00]} Bg7 {[%emt 0:00:00]} 4. Bb2 {[%emt 0:00:00]} O-O {[%emt 0:01:30]} 5. g3 {[%emt 0:00:00]} c5 {[%emt 0:02:30]} 6. Bg2 {[%emt 0:00:30]} Nc6 {[%emt 0:00:30]} 7. O-O {[%emt 0:00:00]} d6 {[%emt 0:12:30]} 8. d4 {[%emt 0:08:00]} Ne4 {[%emt 0:15:30]} 9. h3 {[%emt 0:06:30]} f5 {[%emt 0:03:30]} 10. e3 {[%emt 0:00:30]} e6 {[%emt 0:07:30]} 11. Qc1 {[%emt 0:08:30]} Qf6 {[%emt 0:03:30]} 12. a3 {[%emt 0:10:30]} g5 {[%emt 0:02:30]} 13. Ra2 {[%emt 0:02:30]} e5 {[%emt 0:03:30]} 14. dxe5 {[%emt 0:07:30]} dxe5 {[%emt 0:00:30]} 15. Nfd2 {[%emt 0:01:30]} Nd6 {[%emt 0:06:30]} 16. Nc3 {[%emt 0:02:30]} Qh6 {[%emt 0:03:30]} 17. Nb5 {[%emt 0:13:30]} Ne8 {[%emt 0:07:30]} 18. f4 {[%emt 0:03:30]} a6 {[%emt 0:02:30]} 19. Nc3 {[%emt 0:00:00]} gxf4 {[%emt 0:01:30]} 20. gxf4 {[%emt 0:00:00]} e4 {[%emt 0:00:30]} 21. Nd5 {[%emt 0:00:30]} Be6 {[%emt 0:00:30]} 22. Nb1 {[%emt 0:00:30]} Rd8 {[%emt 0:00:30]} 23. Bxg7 {[%emt 0:00:30]} Qxg7 {[%emt 0:00:30]} 24. Nbc3 {[%emt 0:00:30]} Nf6 {[%emt 0:00:30]} 25. Rd2 {[%emt 0:00:30]} Kh8 {[%emt 0:00:30]} 26. Qb2 {[%emt 0:00:30]} Bxd5 {[%emt 0:05:35]} 27. Nxd5 {[%emt 0:05:30]} Nxd5 {[%emt 0:00:33]} 28. Qxg7+ {[%emt 0:00:30]} Kxg7 {[%emt 0:00:03]} 29. cxd5 {[%emt 0:00:30]} Rd6 {[%emt 0:00:34]} 30. Rc1 {[%emt 0:01:30]} Na5 {[%emt 0:02:22]} 31. Rc3 {[%emt 0:01:03]} Rfd8 {[%emt 0:02:44]} 32. b4 {[%emt 0:05:14]} cxb4 {[%emt 0:01:35]} 33. axb4 {[%emt 0:00:34]} Nc6 {[%emt 0:00:08]} 34. Bxe4 {[%emt 0:01:20]} fxe4 {[%emt 0:04:35]} 35. Rg2+ {[%emt 0:00:09]} Kf7 {[%emt 0:00:05]} 36. dxc6 {[%emt 0:00:17]} bxc6 {[%emt 0:00:12]} 37. Rc4 {[%emt 0:02:22]} Re8 {[%emt 0:00:23]} 38. Ra2 {[%emt 0:00:58]} h5 {[%emt 0:05:55]} 39. h4 {[%emt 0:03:51]} Rd1+ {[%emt 0:03:33]} 40. Kh2 {[%emt 0:00:27]} Re1 {[%emt 0:01:24]} 41. Rc3 {[%emt 0:00:58]} Rd8 {[%emt 0:00:38]} 42. Rxc6 {[%emt 0:04:24]} Rxe3 {[%emt 0:00:29]} 43. Rcxa6 {[%emt 0:00:15]} Rdd3 {[%emt 0:00:16]} 44. Ra7+ {[%emt 0:00:38]} Ke6 {[%emt 0:00:56]} 45. Rg7 {[%emt 0:01:51]} Rh3+ {[%emt 0:00:35]} 46. Kg2 {[%emt 0:00:27]} Rxh4 {[%emt 0:00:11]} 47. Rg5 {[%emt 0:02:22]} Rxf4 {[%emt 0:00:33]} 48. Rxh5 {[%emt 0:00:41]} Rg4+ {[%emt 0:00:43]} 49. Kh2 {[%emt 0:00:14]} e3 {[%emt 0:01:19]} 50. Ra6+ {[%emt 0:00:11]} Kf7 {[%emt 0:00:10]} 51. Rh7+ {[%emt 0:00:37]} Kg8 {[%emt 0:00:01]} 52. Re7 {[%emt 0:00:44]} Rg7 {[%emt 0:00:32]} 53. Rxg7+ {[%emt 0:01:02]} Kxg7 {[%emt 0:00:07]} 1/2-1/2

[Event "33rd Pula Open 2019"]
[Site "Pula"]
[Date "2019.06.27"]
[Round "7.1"]
[White "Boric, Muhamed"]
[Black "Jovanovic, Zoran"]
[Result "1/2-1/2"]
[ECO "B07"]
[WhiteElo "2361"]
[BlackElo "2503"]
[Annotator "ChessBase"]
[PlyCount "24"]
[EventDate "2019.06.22"]
[EventType "swiss"]
[EventCountry "CRO"]
[SourceTitle "playchess.com"]
[Source "ChessBase"]
[SourceQuality "1"]
[TimeControl "5400+30"]

1. d4 {[%emt 0:00:30]} d6 {[%emt 0:00:30]} 2. Nf3 {[%emt 0:00:00]} g6 {[%emt 0:00:30]} 3. e4 {[%emt 0:00:00]} Nf6 {[%emt 0:00:30]} 4. Bd3 {[%emt 0:02:30]} Bg7 {[%emt 0:01:30]} 5. O-O {[%emt 0:00:30]} O-O {[%emt 0:00:00]} 6. c3 {[%emt 0:00:30]} Nbd7 {[%emt 0:00:00]} 7. Re1 {[%emt 0:13:30]} e5 {[%emt 0:01:30]} 8. Nbd2 {[%emt 0:00:30]} b6 {[%emt 0:05:30]} 9. Nf1 {[%emt 0:05:30]} Bb7 {[%emt 0:02:30]} 10. Ng3 {[%emt 0:00:00]} Re8 {[%emt 0:00:30]} 11. Bd2 {[%emt 0:01:00]} a6 {[%emt 0:12:30]} 12. Qb3 {[%emt 0:14:30]} c6 {[%emt 0:13:30]} 1/2-1/2